Cogmind - Beta 15 @@@ ROGUE MODE // 2025.10.10 @ 08:34:05 Player: shapeshifter Result: Destroyed by G-50 Soldier with Heavy Laser Performance ------------- Evolutions (5) 2500 Regions Visited (14) 2800 Robots Destroyed (155) 775 Value Destroyed (6291) 6291 Prototype IDs (42) 840 Alien Tech Used (0) 0 Bonus (3976) 3976 TOTAL SCORE: 17182 Bonus ------- High Alert Combat Kills 1368 Follower Combat Kills 1678 Aligned with FarCom 300 Built Enhanced Grunts 300 Met R17 at Cetus 500 Friendly Fire -170 Cogmind --------- Core Integrity 0/1000 Matter 0/300 Energy 99/100 System Corruption 2% Temperature Cool (9) Movement Core (50) Location -5/Upper Caves Parts ------- > --- POWER (1) -------- (None) > --- PROPULSION (4) --- (None) > --- UTILITY (8) ------ (None) > --- WEAPON (4) ------- (None) > --- INVENTORY (5) ---- Advanced Cooling System YOLO Cannon Guided Micro-nuke Launcher Peak State ------------ > --- POWER ------------ Quantum Reactor > --- PROPULSION ------- Centrium Heavy Treads Centrium Heavy Treads > --- UTILITY ---------- Advanced Cooling System Huge Storage Unit Core Analyzer Centrium Medium Armor Plating Improved Hacking Suite Improved Hacking Suite Improved Hacking Suite Improved Hacking Suite > --- WEAPON ----------- Advanced KE Penetrator Advanced KE Penetrator Compact Linear Accelerator Compact Linear Accelerator > --- INVENTORY -------- Quantum Reactor Quantum Reactor Cooled Q-thruster Cooled Q-thruster High-capacity Storage Unit Huge Storage Unit Matter Compressor Advanced Particle Charger Centrium Medium Armor Plating Centrium Medium Armor Plating YOLO Cannon KE Penetrator KE Penetrator XL Autogun Array Compact Linear Accelerator Compact Linear Accelerator Scatter Rocket Array Guided Micro-nuke Launcher CPS Tube CPS Tube [Rating: 140] Favorites ----------- Power Heavy Ion Engine Engine Heavy Ion Engine Reactor Quantum Reactor Propulsion Armored Treads Treads Armored Treads Leg Enhanced Flexi-carbon Leg Wheel Compact Wheel Flight Unit Improved Cesium-ion Thruster Utility High-capacity Storage Unit Device Improved Heat Sink Storage High-capacity Storage Unit Processor Advanced Signal Interpreter Hackware Improved Hacking Suite Protection Hardened Medium Armor Plating Weapon Gauss Cannon Energy Gun Advanced Variable Charge Gun Energy Cannon Phase Cannon Ballistic Gun Advanced KE Penetrator Ballistic Cannon Gauss Cannon Launcher Scatter Rocket Array Build | -11 -10 -10 -10 -9 -8 -8 -8 -8 -6 -6 -6 -6 -5 -5 ------- Run | Yrd Mat Min Exi Min Mat Sto Rec Scr Fac Ext Cet Arc Fac Upp Slots Evolved 10 | . . . . . 4 . . . 4 . . . 2 . Power . | . . . . . . . . . . . . . . . Propulsion 2 | . . . . . 1 . . . 1 . . . . . Utility 6 | . . . . . 2 . . . 2 . . . 2 . Weapon 2 | . . . . . 1 . . . 1 . . . . . Parts Attached 95 | 7 . . 1 3 12 12 . 2 7 11 8 8 24 . Power 7 | 1 . . . 1 . 2 . . . 1 1 . 1 . Engine 5 | 1 . . . 1 . 2 . . . 1 . . . . Core . | . . . . . . . . . . . . . . . Reactor 2 | . . . . . . . . . . . 1 . 1 . Propulsion 23 | 2 . . . . 5 . . 1 2 5 2 . 6 . Treads 15 | 2 . . . . 3 . . 1 2 5 2 . . . Leg 1 | . . . . . . . . . . . . . 1 . Wheel 6 | . . . . . 2 . . . . . . . 4 . Hover . | . . . . . . . . . . . . . . . Flight 1 | . . . . . . . . . . . . . 1 . Utility 37 | 2 . . 1 1 3 6 . 1 4 3 2 5 9 . Device 11 | 1 . . . . 1 1 . 1 1 1 1 2 2 . Storage 5 | 1 . . 1 . 1 1 . . . . . . 1 . Processor 3 | . . . . . . . . . 1 1 . . 1 . Hackware 4 | . . . . . . . . . . . . . 4 . Protection 14 | . . . . 1 1 4 . . 2 1 1 3 1 . Artifact . | . . . . . . . . . . . . . . . Weapon 28 | 2 . . . 1 4 4 . . 1 2 3 3 8 . Energy Gun 3 | . . . . . . 2 . . . . 1 . . . Energy Cannon 4 | . . . . . 1 . . . 1 . . 1 1 . Ballistic Gun 11 | 2 . . . 1 . . . . . 2 2 2 2 . Ballistic Cannon 7 | . . . . . 3 1 . . . . . . 3 . Launcher 3 | . . . . . . 1 . . . . . . 2 . Special Weapon . | . . . . . . . . . . . . . . . Impact Weapon . | . . . . . . . . . . . . . . . Slashing Weapon . | . . . . . . . . . . . . . . . Piercing Weapon . | . . . . . . . . . . . . . . . Special Melee Weapon . | . . . . . . . . . . . . . . . Unidentified Prototypes 17 | . . . . . 1 4 . 1 . . 4 1 6 . Corrupted Parts 2 | . . . . . . . . . . . 2 . . . System Corruption 7 | . . . . . . . . . . . 7 . . . Parts Lost 27 | . . . . . . . . . . 11 . . 16 . Power 3 | . . . . . . . . . . 1 . . 2 . Propulsion 9 | . . . . . . . . . . 3 . . 6 . Utility 8 | . . . . . . . . . . 3 . . 5 . Weapon 7 | . . . . . . . . . . 4 . . 3 . Highest Loss Streak 9 | . . . . . . . . . . 9 . . 9 . To Critical Strikes 1 | . . . . . . . . . . 1 . . . . Average Backups 13 | 4 6 7 8 9 11 14 14 14 14 11 14 16 16 3 Power . | 1 2 3 3 2 1 . . . . . . 2 2 . Propulsion 1 | 1 2 2 2 2 2 3 3 2 1 . . . . . Utility 5 | . 1 1 1 1 2 6 7 7 5 5 7 7 5 1 Weapon 4 | . 1 1 1 3 5 4 4 4 4 2 4 5 6 2 Tool/Special . | . . . . . . . . . . . . . . . Unused Backups 42 | . . . 3 4 3 3 . 5 1 . 4 1 18 . Power 8 | . . . 2 3 1 . . . . . . . 2 . Propulsion 2 | . . . . . . . . . . . . . 2 . Utility 19 | . . . . 1 1 2 . 5 1 . 3 1 5 . Weapon 10 | . . . 1 . 1 1 . . . . . . 7 . Tool/Special 3 | . . . . . . . . . . . 1 . 2 . Average Slot Usage (%) 93 | . 100 100 100 100 86 99 100 100 94 86 73 85 79 . Engine 7 | . 14 14 14 14 9 8 9 9 6 5 . . . . Treads 23 | . 28 28 28 28 22 27 27 27 25 25 19 13 9 . Device 9 | . 14 14 14 1 4 8 9 9 11 12 13 15 6 . Storage 8 | . 14 14 14 14 9 9 9 9 6 6 6 6 4 . Processor 2 | . . . . . . . . . 4 10 13 7 3 . Hackware 1 | . . . . . . . . . . . . . 18 . Protection 12 | . . . . 12 12 17 18 17 14 7 6 8 4 . Ballistic Gun 6 | . 28 28 28 28 7 . . . . 1 4 23 17 . Ballistic Cannon 15 | . . . . . 15 26 27 27 20 8 . . 1 . Peak Build Rating 140 | 7 7 7 16 18 39 46 45 48 66 82 113 121 140 4 Average Rating 55 | 5 7 7 10 17 32 43 44 45 60 66 91 117 114 4 On Entrance 40 | . 7 7 7 16 18 39 44 45 46 66 82 113 120 4 Naked Turns 25 | . . . . . . . . . . . . . 19 6 Heaviest Build 134 | 14 14 14 29 37 74 87 80 80 89 89 88 100 134 . Greatest Support 160 | 40 40 40 40 40 60 60 60 60 90 90 160 160 160 3 Greatest Overweight (x) 30 | . . . . . 2 1 1 1 . 1 . . 30 . Average Overweight (x) . | . . . . . . 1 1 1 . . . . . . Largest Inventory Capacity 25 | 8 8 8 15 15 20 20 20 20 20 20 20 20 25 5 Average Capacity 19 | 7 8 8 13 15 17 20 20 20 20 20 20 20 21 5 Most Carried 25 | 7 7 7 15 15 20 20 20 20 20 20 20 20 25 5 Average Carried 17 | 4 6 7 10 14 16 19 19 19 19 15 17 19 20 5 Final Capacity 20 | 8 8 8 15 15 20 20 20 20 20 20 20 20 5 5 Final Carried 20 | 6 7 7 15 15 20 19 20 20 20 10 20 20 5 5 Class Distribution -------------------- 40% | Commander-Tank 16% | Mutant 13% | Tank 13% | Scavenger-Tank 8% | Commander-Skirmisher Dominant Class ---------------- Mutant | -10/Materials Mutant | -10/Mines Mutant | -10/Exiles Mutant | -9/Mines Skirmisher | -8/Materials Tank | -8/Storage Commander-Tank | -8/Recycling Commander-Tank | -8/Scraptown Commander-Skirmisher | -6/Factory Commander-Skirmisher | -6/Extension Tank | -6/Cetus Scavenger-Tank | -6/Archives Scavenger-Tank | -5/Factory Mutant | -5/Upper Caves Resources | -11 -10 -10 -10 -9 -8 -8 -8 -8 -6 -6 -6 -6 -5 -5 ----------- Run | Yrd Mat Min Exi Min Mat Sto Rec Scr Fac Ext Cet Arc Fac Upp Matter Collected 5087 | 306 . . 10 114 99 1251 18 30 177 1089 426 380 1187 . Remotely . | . . . . . . . . . . . . . . . Salvage Created 5988 | 84 . . . 127 120 968 21 . 214 1713 621 313 1807 . Parts 284 | 11 . . . 8 13 46 4 . 8 74 23 23 74 . Haulers Intercepted 2 | . . . . . . 1 . . . . . . 1 . Recyclers Shooed 12 | . . . . . . 2 . . 1 3 . . 6 . Parts Field Recycled . | . . . . . . . . . . . . . . . Retrieved Matter . | . . . . . . . . . . . . . . . Parts Self-Destructed . | . . . . . . . . . . . . . . . Prevented . | . . . . . . . . . . . . . . . Kills | -11 -10 -10 -10 -9 -8 -8 -8 -8 -6 -6 -6 -6 -5 -5 ------- Run | Yrd Mat Min Exi Min Mat Sto Rec Scr Fac Ext Cet Arc Fac Upp Combat Hostiles Destroyed 92 | . . . . 4 2 23 . . 3 25 8 . 27 . Melee 1 | . . . . . . 1 . . . . . . . . Guns 27 | . . . . 4 . . . . . 8 8 . 7 . Cannons 32 | . . . . . 2 22 . . 3 2 . . 3 . AOE 32 | . . . . . . . . . . 15 . . 17 . Classes Destroyed 17 | 1 . . . 2 2 5 . . . 3 . 1 3 . Worker 8 | . . . . . . . . . . 3 . . 5 . Builder 11 | . . . . . 1 1 1 . . 5 . . 3 . Tunneler 6 | 4 . . . . . . . . . 2 . . . . Hauler 2 | . . . . . . 1 . . . . . . 1 . Recycler 14 | . . . . . . 2 . . . 6 . . 6 . Mechanic 1 | . . . . . . . . . . . . . 1 . Operator 6 | . . . . . . . . . . . . 6 . . Watcher 13 | . . . . . 2 2 . . 2 2 2 . 3 . Swarmer 13 | . . . . 2 . . . . . 9 . . 2 . Saboteur 2 | . . . . . . . . . . . . . 2 . Grunt 32 | . . . . 2 2 10 . . 2 10 . . 6 . Brawler 2 | . . . . . . 1 . . . 1 . . . . Sentry 14 | . . . . . . 10 . . 1 1 . . 2 . Specialist 3 | . . . . . . . . . . . . . 3 . Hunter 11 | . . . . . . 2 . . . 2 . . 7 . Programmer 6 | . . . . . . . . . . 1 . . 5 . Behemoth 1 | . . . . . . . . . . 1 . . . . Cetus Guard 8 | . . . . . . . . . . . 8 . . . Enhanced Grunt 1 | . . . . . . . . . . . . 1 . . Savage 1 | . . . . . . . . . . 1 . . . . Best Kill Streak 16 | 1 . . . 4 2 5 1 . 2 16 5 2 15 . Combat Bots Only 10 | . . . . 4 2 5 . . 2 7 4 . 10 . Max Kills in Single Turn 8 | 1 . . . 1 1 2 1 . 1 8 2 2 8 . Gunslinging 1 | . . . . . . . . . . . . . 1 . Exploded 7 | . . . . . . . . . . 4 . . 7 . Melee 1 | . . . . . . 1 . . . . . . . . Uniques/NPCs Destroyed . | . . . . . . . . . . . . . . . Combat | -11 -10 -10 -10 -9 -8 -8 -8 -8 -6 -6 -6 -6 -5 -5 -------- Run | Yrd Mat Min Exi Min Mat Sto Rec Scr Fac Ext Cet Arc Fac Upp Hostile Shots Fired 760 | . 2 . . 59 2 114 . . 33 255 37 8 249 1 Missed 238 | . 1 . . 15 2 32 . . 16 85 15 1 71 . Hits 522 | . 1 . . 44 . 82 . . 17 170 22 7 178 1 Melee 1 | . . . . . . . . . . . . . 1 . Projectile 521 | . 1 . . 44 . 82 . . 17 170 22 7 177 1 Critical Strikes 31 | . . . . . . 5 . . . 5 3 . 18 . Part Disruptions 1 | . . . . . . . . . . . . . 1 . Damage Taken 10236 | . 11 . . 388 . 1334 . . 120 2817 652 214 4681 19 Core 1562 | . . . . 34 . 131 . . 33 310 51 . 984 19 Absorbed by Shields 219 | . . . . . . . . . 3 185 31 . . . Redirected to Shielding 101 | . . . . . . . . . 15 86 . . . . Core Remaining (%) 78 | 100 . . . 86 . . . 76 . . . 53 . . Volleys Fired 272 | 9 . . . 15 10 60 1 . 11 37 30 20 79 . Largest 4 | 2 . . . 2 3 3 3 . 3 3 1 4 4 . Hottest 174 | 40 . . . 43 120 120 120 . 120 125 60 150 174 . Shots Fired 679 | 18 . . . 30 28 152 3 . 33 121 29 66 199 . Gun 355 | 18 . . . 30 10 . . . . 51 29 66 151 . Cannon 308 | . . . . . 18 152 3 . 33 63 . . 39 . Launcher 16 | . . . . . . . . . . 7 . . 9 . Special . | . . . . . . . . . . . . . . . Kinetic 653 | 18 . . . 30 22 151 3 . 33 113 29 64 190 . Thermal 10 | . . . . . 6 1 . . . 1 . 2 . . Explosive 16 | . . . . . . . . . . 7 . . 9 . Electromagnetic . | . . . . . . . . . . . . . . . Robot Hit Streak 20 | 7 . . . 4 5 12 1 . 4 20 12 5 12 . Robot Miss Streak 9 | 1 . . . 3 4 4 . . 4 9 4 4 9 . Penetration Max 1 | . . . . . . 1 . . 1 1 . 1 1 . Secondary Targets 4 | . . . . 1 . . . . . . . . 3 . Max Gunslinging Chain 2 | . . . . 1 . . . . . . . . 2 . Autonomous 43 | . . . . . . . . . . 43 . . . . Shots Hit Robots 390 | 13 . . . 15 13 78 1 . 13 87 29 33 108 . Core Hits 357 | 5 . . . 6 7 36 1 . 7 121 35 12 127 . Critical Kills 7 | . . . . . . . . . . . . 4 3 . Critical Parts Destroyed 9 | . . . . . . . . . . 1 . 4 4 . Critical Strikes 45 | . . . . . 1 17 . . 3 6 . 10 8 . Destroy 18 | . . . . . . . . . . 1 . 10 7 . Blast 27 | . . . . . 1 17 . . 3 5 . . 1 . Melee Attacks . | . . . . . . . . . . . . . . . Impact . | . . . . . . . . . . . . . . . Slashing . | . . . . . . . . . . . . . . . Piercing . | . . . . . . . . . . . . . . . Sneak Attacks . | . . . . . . . . . . . . . . . Combat Hostiles . | . . . . . . . . . . . . . . . Follow-up Attacks . | . . . . . . . . . . . . . . . Damage Inflicted 19959 | 135 . . . 256 295 2403 29 . 528 5395 2092 942 7884 . Guns 7777 | 135 . . . 256 41 . . . . 1543 2092 942 2768 . Cannons 5636 | . . . . . 254 2393 29 . 528 1253 . . 1179 . Explosions 6521 | . . . . . . . . . . 2588 . . 3933 . Melee . | . . . . . . . . . . . . . . . Ramming 25 | . . . . . . 10 . . . 11 . . 4 . Kinetic 13319 | 135 . . . 256 233 2393 29 . 528 2764 2092 942 3947 . Thermal 481 | . . . . . 62 . . . . 32 . . 387 . Explosive 6134 | . . . . . . . . . . 2588 . . 3546 . Electromagnetic . | . . . . . . . . . . . . . . . Impact . | . . . . . . . . . . . . . . . Slashing . | . . . . . . . . . . . . . . . Piercing . | . . . . . . . . . . . . . . . Highest Corruption 12 | . . . . . . . . . . 5 12 12 2 2 Average Corruption 6 | . . . . . . . . . . 5 6 8 1 2 Corruption Purged 7 | . . . . . . . . . . . . 7 . . Corruption Blocked . | . . . . . . . . . . . . . . . Effects 48 | . . . . . . . . . . 4 16 21 6 1 Message Errors 13 | . . . . . . . . . . 1 5 4 2 1 Matter Fused 14 | . . . . . . . . . . 2 7 4 1 . Heat Flow Errors 3 | . . . . . . . . . . . . 2 1 . Energy Discharges 4 | . . . . . . . . . . . 1 3 . . Parts Rejected 1 | . . . . . . . . . . . 1 . . . Parts Fused 1 | . . . . . . . . . . . 1 . . . Data Loss (minor) 7 | . . . . . . . . . . 1 . 6 . . Misfires 1 | . . . . . . . . . . . . 1 . . Misdirections 1 | . . . . . . . . . . . . 1 . . Weapon Failures 3 | . . . . . . . . . . . 1 . 2 . Overload Shots . | . . . . . . . . . . . . . . . Overflow Damage 277 | . . . . . . 10 . . . 127 . . 140 . Projectiles 202 | . . . . . . 10 . . . 109 . . 83 . Explosions 75 | . . . . . . . . . . 18 . . 57 . Melee . | . . . . . . . . . . . . . . . Knockbacks 24 | . . . . . . 13 . . 1 9 . . 1 . Impact . | . . . . . . . . . . . . . . . Kinetic 24 | . . . . . . 13 . . 1 9 . . 1 . Secondary . | . . . . . . . . . . . . . . . Self-Inflicted Damage 199 | . . . . . . 118 . . . 21 . . 60 . Shots 6 | . . . . . . 2 . . . 1 . . 3 . Rammed 6 | . . . . . . 4 . . . 1 . . 1 . Targets Rammed 8 | . . . . . . 6 . . . 1 . . 1 . Kicked . | . . . . . . . . . . . . . . . Crushed 2 | . . . . . . 2 . . . . . . . . Highest Temperature 350 | . . . . 36 153 198 18 . 48 334 306 254 350 . Average Temperature 78 | . . . . 22 49 79 12 . 18 56 151 34 101 . Received Heat Transfer 2635 | . 6 . . 45 . 639 . . 30 913 63 18 912 9 Effects 2 | . . . . . . . . . . 1 1 . . . Shutdowns 1 | . . . . . . . . . . . 1 . . . Energy Bleed 1 | . . . . . . . . . . 1 . . . . Siege Activations . | . . . . . . . . . . . . . . . Martial Activations . | . . . . . . . . . . . . . . . Shielding Activations . | . . . . . . . . . . . . . . . Robots Disrupted . | . . . . . . . . . . . . . . . Combat Hostiles . | . . . . . . . . . . . . . . . Robots Corrupted . | . . . . . . . . . . . . . . . Combat Hostiles . | . . . . . . . . . . . . . . . Parts Fried . | . . . . . . . . . . . . . . . Impact Corruptions . | . . . . . . . . . . . . . . . Robots Melted . | . . . . . . . . . . . . . . . Combat Hostiles . | . . . . . . . . . . . . . . . Parts Melted . | . . . . . . . . . . . . . . . Heat Transferred 448 | . . . . . 111 . . . . 37 . . 300 . Parts Sabotaged 2 | . . . . . . . . . . . . . 2 . Parts Stolen . | . . . . . . . . . . . . . . . Parts Stripped . | . . . . . . . . . . . . . . . Power Chain Reactions . | . . . . . . . . . . . . . . . Alert | -11 -10 -10 -10 -9 -8 -8 -8 -8 -6 -6 -6 -6 -5 -5 ------- Run | Yrd Mat Min Exi Min Mat Sto Rec Scr Fac Ext Cet Arc Fac Upp Maximum Alert Level 5 | . . . . . . 2 . . . 3 2 1 5 . Low Security (%) 61 | 100 100 100 . 100 100 41 100 . 100 44 . 20 40 . Level 1 16 | . . . . . . 24 . . . 4 38 79 24 . Level 2 14 | . . . . . . 34 . . . 21 61 . 2 . Level 3 4 | . . . . . . . . . . 30 . . 2 . Level 4 1 | . . . . . . . . . . . . . 14 . Level 5 1 | . . . . . . . . . . . . . 15 . High Security . | . . . . . . . . . . . . . . . Max Security . | . . . . . . . . . . . . . . . Peak Influence 1731 | 5 30 3 . 85 53 573 194 . 168 948 491 356 1731 . Initial 491 | . . 3 . . . 15 194 . . 14 491 163 58 . Average 249 | 1 9 1 . 19 5 288 77 . 71 420 408 257 596 . Influence Increases 6674 | 20 30 . . 126 96 1066 332 . 323 1652 259 282 2488 . Destroy 0b10 Robot/C 2760 | . . . . 100 40 520 100 . 120 820 160 80 820 . Destroy 0b10 Robot/NC 325 | 20 . . . . 15 35 10 . 10 95 10 30 100 . Destroy Leader 518 | . . . . 10 14 178 . . 44 104 . . 168 . Allied During Kill 1273 | . . . . 1 . 75 77 . 125 393 85 110 407 . Successful Hack 82 | . . . . . 8 20 23 . . 28 . . 3 . Select Force Hacks 150 | . 30 . . . . . 120 . . . . . . . Disable Machine 480 | . . . . . 15 120 . . 15 . . 45 285 . Anti-Garrison Action 150 | . . . . . . . . . . . . . 150 . Destroy Structure 726 | . . . . . 4 88 2 . 9 122 4 17 480 . Lose Combat Pursuer 210 | . . . . 15 . 30 . . . 90 . . 75 . Influence Decreases 5575 | 20 20 10 . 126 59 604 831 . 294 803 729 523 909 647 Entered New Map 1737 | . . 7 . . . 22 305 . . 15 387 245 109 647 Time Decay 2998 | 20 20 3 . 126 59 582 526 . 274 438 262 278 410 . Lost Part 270 | . . . . . . . . . . 110 . . 160 . Lost Ally 420 | . . . . . . . . . 20 240 80 . 80 . Purge Threat 150 | . . . . . . . . . . . . . 150 . Squads Dispatched 23 | . 1 . . . 2 2 . . 1 3 . . 14 . Investigation 5 | . 1 . . . 1 . . . 1 2 . . . . Extermination 1 | . . . . . . . . . . . . . 1 . Reinforcement 10 | . . . . . . 2 . . . 1 . . 7 . Assault 4 | . . . . . . . . . . . . . 4 . Garrison 3 | . . . . . 1 . . . . . . . 2 . Intercept . | . . . . . . . . . . . . . . . Searches Triggered . | . . . . . . . . . . . . . . . Construction Impeded 5 | . . . . . . 1 . . . 1 . . 3 . Haulers Reinforced . | . . . . . . . . . . . . . . . Active Scanning Responses . | . . . . . . . . . . . . . . . Cargo Convoy Interrupts 1 | . . . . . . . . . . . . . 1 . Stealth | -11 -10 -10 -10 -9 -8 -8 -8 -8 -6 -6 -6 -6 -5 -5 --------- Run | Yrd Mat Min Exi Min Mat Sto Rec Scr Fac Ext Cet Arc Fac Upp Distress Signals 8 | . . . . . . 2 . . 1 2 . . 3 . Communications Jammed . | . . . . . . . . . . . . . . . Distress Signals . | . . . . . . . . . . . . . . . Times Spotted 187 | . 2 . . 7 6 29 5 . 6 51 10 14 56 1 Peak Tracking Total 11 | . 2 . . 4 2 5 2 . 3 11 5 2 11 5 Tactical Retreats 10 | . . . . 1 . 2 . . . 4 . . 3 . Traps | -11 -10 -10 -10 -9 -8 -8 -8 -8 -6 -6 -6 -6 -5 -5 ------- Run | Yrd Mat Min Exi Min Mat Sto Rec Scr Fac Ext Cet Arc Fac Upp Traps Triggered 6 | . . . . . 1 2 . . . 3 . . . . Indirectly . | . . . . . . . . . . . . . . . Trap Hack Attempts . | . . . . . . . . . . . . . . . Triggered . | . . . . . . . . . . . . . . . Disarmed . | . . . . . . . . . . . . . . . Reprogrammed . | . . . . . . . . . . . . . . . Reused . | . . . . . . . . . . . . . . . Traps Extracted . | . . . . . . . . . . . . . . . Installed . | . . . . . . . . . . . . . . . Triggered . | . . . . . . . . . . . . . . . Machines | -11 -10 -10 -10 -9 -8 -8 -8 -8 -6 -6 -6 -6 -5 -5 ---------- Run | Yrd Mat Min Exi Min Mat Sto Rec Scr Fac Ext Cet Arc Fac Upp Machines Disabled 33 | . . . . . 1 8 . . 1 . . 3 20 . Max in Single Turn 6 | . . . . . 1 3 . . 1 . . 1 6 . Garrison Access 2 | . . . . . . 1 . . . . . . 1 . Energy Cycler 1 | . . . . . . . . . . 1 . . . . Machines Repaired . | . . . . . . . . . . . . . . . Machines Dismantled . | . . . . . . . . . . . . . . . Machines Sabotaged . | . . . . . . . . . . . . . . . Overloaded Fab Kills . | . . . . . . . . . . . . . . . Hacking | -11 -10 -10 -10 -9 -8 -8 -8 -8 -6 -6 -6 -6 -5 -5 --------- Run | Yrd Mat Min Exi Min Mat Sto Rec Scr Fac Ext Cet Arc Fac Upp Machines Accessed 35 | . 1 . 2 . 2 8 11 . 3 5 . . 3 . Terminals 21 | . . . . . 1 6 6 . 1 5 . . 2 . Fabricators 1 | . . . . . . . . . 1 . . . . . Repair Stations . | . . . . . . . . . . . . . . . Recycling Units 9 | . 1 . . . 1 1 5 . 1 . . . . . Scanalyzers 1 | . . . . . . . . . . . . . 1 . Garrison Access 1 | . . . . . . 1 . . . . . . . . Total Hacks 85 | . 3 . 2 . 4 14 34 . 3 14 . . 11 . Successful 41 | . 2 . 2 . 2 7 18 . 1 3 . . 6 . Failed 44 | . 1 . . . 2 7 16 . 2 11 . . 5 . Catastrophic 6 | . . . . . . 2 1 . . 3 . . . . Database Lockouts . | . . . . . . . . . . . . . . . Manual 39 | . 1 . 1 . 2 4 24 . . 1 1 . 5 . Terminals 52 | . . . . . 2 10 17 . 1 14 . . 8 . Fabricators 1 | . . . . . . . . . 1 . . . . . Repair Stations . | . . . . . . . . . . . . . . . Recycling Units 25 | . 3 . . . 2 2 17 . 1 . . . . . Scanalyzers 3 | . . . . . . . . . . . . . 3 . Garrison Access 2 | . . . . . . 2 . . . . . . . . Terminal Hacks 16 | . . . 2 . 1 4 1 . 1 3 . . 4 . Record 1 | . . . 1 . . . . . . . . . . . Part Schematic 1 | . . . . . . 1 . . . . . . . . Prototype ID Bank 1 | . . . . . . . 1 . . . . . . . Open Door 6 | . . . . . . 3 . . 1 2 . . . . Level Access Points 1 | . . . . . . . . . . . . . 1 . Branch Access Points 2 | . . . . . 1 . . . . . . . 1 . Unreport Threat 1 | . . . . . . . . . . . . . 1 . Hauler Manifests 1 | . . . . . . . . . . . . . 1 . Zone Layout 1 | . . . . . . . . . . 1 . . . . Proto ID Catalog 1 | . . . 1 . . . . . . . . . . . Fabricator Hacks . | . . . . . . . . . . . . . . . Repair Station Hacks . | . . . . . . . . . . . . . . . Recycling Unit Hacks 7 | . 1 . . . 1 1 4 . . . . . . . Retrieve Components 7 | . 1 . . . 1 1 4 . . . . . . . Scanalyzer 2 | . . . . . . . . . . . . . 2 . Insert Component 1 | . . . . . . . . . . . . . 1 . Analyze 1 | . . . . . . . . . . . . . 1 . Garrison Access Hacks 1 | . . . . . . 1 . . . . . . . . Seal Access 1 | . . . . . . 1 . . . . . . . . Unauthorized Hacks 15 | . 1 . . . . 1 13 . . . . . . . Terminals 10 | . . . . . . 1 9 . . . . . . . Botnet 4 | . . . . . . 1 3 . . . . . . . Skim 6 | . . . . . . . 6 . . . . . . . Fabricators . | . . . . . . . . . . . . . . . Repair Stations . | . . . . . . . . . . . . . . . Recycling Units 5 | . 1 . . . . . 4 . . . . . . . Tunnel 5 | . 1 . . . . . 4 . . . . . . . Scanalyzers . | . . . . . . . . . . . . . . . Garrison Access . | . . . . . . . . . . . . . . . Data Cores Recovered . | . . . . . . . . . . . . . . . Used . | . . . . . . . . . . . . . . . Hacking Detections 25 | . . . . . 1 5 9 . 2 5 . . 3 . Full Trace Events 4 | . . . . . . . 2 . . 2 . . . . Feedback Events . | . . . . . . . . . . . . . . . Feedback Blocked . | . . . . . . . . . . . . . . . Robot Schematics Acquired . | . . . . . . . . . . . . . . . Robots Built . | . . . . . . . . . . . . . . . Authchips . | . . . . . . . . . . . . . . . Time . | . . . . . . . . . . . . . . . Total Robot Build Rating . | . . . . . . . . . . . . . . . Part Schematics Acquired 2 | . . . . . . 1 . . . . . . 1 . Parts Built . | . . . . . . . . . . . . . . . Authchips . | . . . . . . . . . . . . . . . Time . | . . . . . . . . . . . . . . . Total Part Build Rating . | . . . . . . . . . . . . . . . Parts Repaired . | . . . . . . . . . . . . . . . Time . | . . . . . . . . . . . . . . . Parts Recycled . | . . . . . . . . . . . . . . . Recycled Matter . | . . . . . . . . . . . . . . . Retrieved Matter . | . . . . . . . . . . . . . . . Retrieved Components 18 | . 3 . . . . 10 5 . . . . . . . Parts Scanalyzed 1 | . . . . . . . . . . . . . 1 . Part Schematics Acquired 1 | . . . . . . . . . . . . . 1 . Parts Damaged . | . . . . . . . . . . . . . . . Bothacking | -11 -10 -10 -10 -9 -8 -8 -8 -8 -6 -6 -6 -6 -5 -5 ------------ Run | Yrd Mat Min Exi Min Mat Sto Rec Scr Fac Ext Cet Arc Fac Upp Used RIF Installer . | . . . . . . . . . . . . . . . Robots Hacked . | . . . . . . . . . . . . . . . Non-combat . | . . . . . . . . . . . . . . . Combat . | . . . . . . . . . . . . . . . Robot Hacks Applied . | . . . . . . . . . . . . . . . Relay Couplers Released 3 | . . . . . . 2 . . . . . . 1 . Machine Destruction 3 | . . . . . . 2 . . . . . . 1 . Fabnet Peak Effective % . | . . . . . . . . . . . . . . . Robots Rewired 15 | . . . . . . . 4 . . 11 . . . . Allies Hacked . | . . . . . . . . . . . . . . . Hacks Repelled . | . . . . . . . . . . . . . . . Allies | -11 -10 -10 -10 -9 -8 -8 -8 -8 -6 -6 -6 -6 -5 -5 -------- Run | Yrd Mat Min Exi Min Mat Sto Rec Scr Fac Ext Cet Arc Fac Upp Total Allies 38 | . . . . 1 . 10 4 . . 18 5 . . . Largest Group 19 | . . . . 1 1 10 14 14 14 19 5 5 4 . Highest-Rated Group 480 | . . . . 31 31 173 229 229 229 466 480 473 377 . Highest-Rated Ally 159 | . . . . 31 31 29 29 29 29 159 159 96 96 . Total Orders . | . . . . . . . . . . . . . . . Ally Attacks 331 | . . . . 7 1 25 33 . 34 134 13 27 57 . Total Damage 7904 | . . . . 62 20 292 415 . 480 2608 383 1030 2614 . Kills 50 | . . . . 1 . 4 6 . 3 17 . 4 15 . Allies Corrupted 1 | . . . . . . . . . . . . . 1 . Allies Melted . | . . . . . . . . . . . . . . . Intel | -11 -10 -10 -10 -9 -8 -8 -8 -8 -6 -6 -6 -6 -5 -5 ------- Run | Yrd Mat Min Exi Min Mat Sto Rec Scr Fac Ext Cet Arc Fac Upp Active Infowar (turns) 3930 | 33 118 36 542 30 . . . . 522 1200 560 610 279 . Optics 2288 | . . . . . . . . . . 839 560 610 279 . Sensors 1044 | . . . . . . . . . 522 522 . . . . Seismic 759 | 33 118 36 542 30 . . . . . . . . . . Robot Analysis Total . | . . . . . . . . . . . . . . . Derelict Logs Recovered 1 | . . . . 1 . . . . . . . . . . Drone Launches . | . . . . . . . . . . . . . . . Drone Recoveries . | . . . . . . . . . . . . . . . Exploration | -11 -10 -10 -10 -9 -8 -8 -8 -8 -6 -6 -6 -6 -5 -5 ------------- Run | Yrd Mat Min Exi Min Mat Sto Rec Scr Fac Ext Cet Arc Fac Upp Turns Passed 11358 | 175 118 36 542 491 492 1822 1727 1914 642 1200 560 610 1023 6 Spaces Moved 4740 | 88 74 23 332 264 227 609 570 745 334 550 290 157 466 11 Core 62 | 12 . . . . . . . . . . . . 39 11 Treads 4580 | 76 74 23 332 264 151 609 570 745 334 550 290 157 405 . Legs . | . . . . . . . . . . . . . . . Wheels 98 | . . . . . 76 . . . . . . . 22 . Hover . | . . . . . . . . . . . . . . . Flight . | . . . . . . . . . . . . . . . Fastest Speed 50 | 50 160 160 160 160 115 250 250 250 167 167 160 160 50 50 Average Speed 198 | 145 160 160 160 160 182 250 250 250 167 169 165 160 153 50 Slowest Speed 1550 | 160 160 160 160 160 330 250 250 250 167 250 167 160 1550 50 Overloaded Moves . | . . . . . . . . . . . . . . . Propulsion Burnouts . | . . . . . . . . . . . . . . . Robots Hopped . | . . . . . . . . . . . . . . . Potential Cave-ins . | . . . . . . . . . . . . . . . Cave-ins Triggered . | . . . . . . . . . . . . . . . Exploration Rate (%) 44 | 4 16 8 69 65 23 67 96 55 10 81 71 81 19 7 Regions Visited 14 Branch Regions 10 Pre-discovered Areas 8 | . 1 . 1 . . . 6 . . . . . . . Known Exits Taken 7 | . . . . . 1 . 1 . 1 1 1 1 1 . Unknown Exits Taken 7 | 1 1 1 1 1 . 1 . 1 . . . . . . Scrap Searched 8 | . . . . 1 . . . 7 . . . . . . Spaces Dug 8 | . . . . . . . . . 1 7 . . . . Terrain Destroyed 669 | . . . . . 4 91 1 . 7 311 1 20 234 . Melee . | . . . . . . . . . . . . . . . Projectile 173 | . . . . . 4 74 1 . 7 37 1 20 29 . AOE 496 | . . . . . . 17 . . . 274 . . 205 . Terrain Rammed . | . . . . . . . . . . . . . . . Walls Destroyed . | . . . . . . . . . . . . . . . Machines Disabled . | . . . . . . . . . . . . . . . Actions | -11 -10 -10 -10 -9 -8 -8 -8 -8 -6 -6 -6 -6 -5 -5 --------- Run | Yrd Mat Min Exi Min Mat Sto Rec Scr Fac Ext Cet Arc Fac Upp Total 6253 | 119 74 22 346 306 289 783 871 800 396 754 377 469 636 11 Wait 717 | 4 . . . 16 4 61 248 39 34 26 16 268 1 . Move 4726 | 87 73 22 331 263 226 608 569 744 333 549 289 156 465 11 Hop . | . . . . . . . . . . . . . . . Pick Up 123 | 12 1 . 8 3 17 10 1 7 7 5 18 5 29 . Fast Attach 21 | 1 . . . 1 3 5 . . . . 2 6 3 . Attach 64 | 6 . . . . 10 3 . . 4 11 6 1 23 . Detach 14 | . . . . . 2 . . . . 2 2 . 8 . Swap 38 | . . . 1 2 4 10 . 3 3 2 2 4 7 . Drop 96 | . . . 6 6 13 16 . 7 4 3 12 9 20 . Fire 272 | 9 . . . 15 10 60 1 . 11 37 30 20 79 . Melee . | . . . . . . . . . . . . . . . Ram . | . . . . . . . . . . . . . . . Kick . | . . . . . . . . . . . . . . . Crush 8 | . . . . . . 6 . . . 1 . . 1 . Escape Stasis 4 | . . . . . . 4 . . . . . . . . Rewire 170 | . . . . . . . 52 . . 118 . . . . Trap . | . . . . . . . . . . . . . . . Miscellaneous . | . . . . . . . . . . . . . . . Route ------- -11/Scrapyard -10/Materials -10/Mines -10/Exiles -9/Mines (discovered 2 exits: *Mat x2) -8/Materials -8/Storage -8/Recycling (discovered 2 exits: *Fac / *Scr) -8/Scraptown -6/Factory (discovered 7 exits: *Fac x4 / Low x2 / *Ext) -6/Extension (discovered 3 exits: *Fac x2 / *Cet) -6/Cetus (discovered 2 exits: *Fac / *Arc) -6/Archives (discovered 3 exits: *Fac / [*Hub x2]) -5/Factory (discovered 6 exits: *Fac x4 / *Upp x2) -5/Upper Caves History --------- Turn | Location | Event 8 | -11/Scrapyard | Discovered new exit (range 16) 176 | -11/Scrapyard | Entered Materials 191 | -10/Materials | Discovered new exit (range 15) 294 | -10/Materials | Entered Mines 310 | -10/Mines | Build established: Mutant 323 | -10/Mines | Deemed a non-threat by the Exiles lab entrance 323 | -10/Mines | Discovered new exit (range 5) 330 | -10/Mines | Entered Exiles 385 | -10/Exiles | Met 8R-AWN 411 | -10/Exiles | Met EX-HEX 497 | -10/Exiles | Met EX-DEC 523 | -10/Exiles | Learned location of Zion (-6) 627 | -10/Exiles | Met EX-BIN 649 | -10/Exiles | Aligned with FarCom system 651 | -10/Exiles | Given EX-Vault access code 688 | -10/Exiles | Opened EX-Vault 699 | -10/Exiles | Found YOLO Cannon 708 | -10/Exiles | Found XL Autogun Array 714 | -10/Exiles | Found AWS/Gauss 750 | -10/Exiles | Warned to stay clear of 0b10 Research branches 846 | -10/Exiles | Discovered new exit (range 14) 872 | -10/Exiles | Stole three prototypes: YOLO Cannon, AWS/Gauss, XL Autogun Array 872 | -10/Exiles | Entered Mines 882 | -9/Mines | Found DCF Scrap (13 items) 889 | -9/Mines | Met a Derelict bent on vengeance 924 | -9/Mines | Assembled infested the area 929 | -9/Mines | Assisted by a Guerilla fighting off Assembled 1008 | -9/Mines | A weapon hastily lodged in a ceiling crevice suddenly fell to the ground 1141 | -9/Mines | Discovered new exit (range 9) 1213 | -9/Mines | Discovered new exit (range 15) 1230 | -9/Mines | Received a Mining Laser from a helpful Derelict 1363 | -9/Mines | Entered Materials 1363 | -8/Materials | Accompanied by 1 ally 1363 | -8/Materials | Evolved 4 slots: Propulsion x1, Utility x2, Weapon x1 1507 | -8/Materials | Garrison activated, responded to threat 1609 | -8/Materials | Identified exit to Storage 1855 | -8/Materials | Build established: Skirmisher 1855 | -8/Materials | Entered Storage 1857 | -8/Storage | FarCom data flow suspended 2138 | -8/Storage | Used back door to open Recycling access 2138 | -8/Storage | Discovered new exit (range 4) 2164 | -8/Storage | Build established: Tank 2729 | -8/Storage | Found Prototype Launcher 2730 | -8/Storage | Identified Scatter Rocket Array 3096 | -8/Storage | Assisted by bots powering up and referring to "LRC-V3" 3406 | -8/Storage | Build established: Commander-Tank 3677 | -8/Storage | Entered Recycling 3677 | -8/Recycling | Accompanied by 10 allies 4168 | -8/Recycling | Discovered new exit (range 16) 4886 | -8/Recycling | Learned Factory emergency access door positions 4954 | -8/Recycling | Learned 2 Storage zone layouts 5011 | -8/Recycling | Identified exit to Scraptown 5058 | -8/Recycling | Learned 2 Storage zone layouts 5084 | -8/Recycling | Scanned before Scraplab entrance 5095 | -8/Recycling | Learned location of Lower Caves (-7) 5120 | -8/Recycling | Learned location of Lower Caves (-6) 5134 | -8/Recycling | Learned location of 2 exits from Factory 5197 | -8/Recycling | Learned location of 1 exit from Storage 5243 | -8/Recycling | Learned 8 Factory zone layouts 5301 | -8/Recycling | Learned location of 3 exits from Factory 5348 | -8/Recycling | Entered Scraplab 5404 | -8/Recycling | Entered Scraptown 5404 | -8/Scraptown | Accompanied by 14 allies 5846 | -8/Scraptown | Discovered new exit (range 13) 5996 | -8/Scraptown | Visited Bundlers 6221 | -8/Scraptown | Heard Great Nut preacher, LISTEN AND RECITE! 6226 | -8/Scraptown | Visited Spacefarers 6368 | -8/Scraptown | Visited Fellowship of the Rings 6453 | -8/Scraptown | Visited Shadow of the Wyrm 6506 | -8/Scraptown | Visited Cave Peace 6531 | -8/Scraptown | Visited Cyclists 6556 | -8/Scraptown | Visited Awakened 7134 | -8/Scraptown | Turned away by UFD registrar 7318 | -8/Scraptown | Entered Factory 7318 | -6/Factory | Accompanied by 14 allies 7318 | -6/Factory | Evolved 4 slots: Propulsion x1, Utility x2, Weapon x1 7319 | -6/Factory | Identified exit to Lower Caves 7319 | -6/Factory | Identified exit to Extension 7320 | -6/Factory | Identified exit to Factory 7736 | -6/Factory | Build established: Commander-Skirmisher 7960 | -6/Factory | Entered Extension 7960 | -6/Extension | Accompanied by 12 allies 8128 | -6/Extension | Rescued a captive Derelict 8129 | -6/Extension | Rescued a captive Derelict 8375 | -6/Extension | Rescued a captive Derelict 8376 | -6/Extension | Energy Cycler disabled 8376 | -6/Extension | Rescued a captive Derelict 8377 | -6/Extension | Rescued a captive Derelict 8378 | -6/Extension | Rescued a captive Derelict 8407 | -6/Extension | Lost 12 allies 8411 | -6/Extension | Spotted B-75 Beast 8459 | -6/Extension | Discovered exit to Factory (range 20) 8460 | -6/Extension | Disrupted transfer network 8462 | -6/Extension | Spotted B-75 Beast 8480 | -6/Extension | Allies destroyed B-75 Beast 8482 | -6/Extension | Rescued A7 8506 | -6/Extension | Destroyed B-75 Beast 8518 | -6/Extension | Lost 7 allies 8533 | -6/Extension | Lost 9 parts (1p3n2u3w) 8747 | -6/Extension | Build established: Mutant 8795 | -6/Extension | Discovered new exit (range 22) 8797 | -6/Extension | Discovered exit to Factory (range 21) 8813 | -6/Extension | Destroyed 7 combat bots 9153 | -6/Extension | Identified exit to Cetus 9160 | -6/Extension | Entered Cetus 9160 | -6/Cetus | Accompanied by 4 allies (A7) 9165 | -6/Cetus | Acquired a Cetus Manufacturing Module code from A7 9179 | -6/Cetus | Spotted Cetus Guard 9179 | -6/Cetus | Spotted Cetus Guard 9179 | -6/Cetus | Spotted Cetus Guard 9179 | -6/Cetus | Spotted Cetus Guard 9198 | -6/Cetus | Destroyed Cetus Guard 9204 | -6/Cetus | Destroyed Cetus Guard 9210 | -6/Cetus | Destroyed Cetus Guard 9212 | -6/Cetus | Destroyed Cetus Guard 9225 | -6/Cetus | Lost 4 allies 9334 | -6/Cetus | Started Cetus Manufacturing Module 9344 | -6/Cetus | Discovered new exit (range 22) 9359 | -6/Cetus | Manufactured an Enhanced Grunt 9384 | -6/Cetus | Manufactured an Enhanced Grunt 9409 | -6/Cetus | Manufactured an Enhanced Grunt 9434 | -6/Cetus | Manufactured an Enhanced Grunt 9450 | -6/Cetus | Extracted ID and sensor layout for unrecognized location from A7's data core 9459 | -6/Cetus | Manufactured an Enhanced Grunt 9563 | -6/Cetus | Spotted Cetus Guard 9563 | -6/Cetus | Spotted Cetus Guard 9563 | -6/Cetus | Spotted Cetus Guard 9563 | -6/Cetus | Spotted Cetus Guard 9567 | -6/Cetus | Destroyed Cetus Guard 9571 | -6/Cetus | Destroyed Cetus Guard 9574 | -6/Cetus | Destroyed Cetus Guard 9576 | -6/Cetus | Destroyed Cetus Guard 9577 | -6/Cetus | Discovered exit to Factory (range 21) 9596 | -6/Cetus | Met Revision 17 9648 | -6/Cetus | System corruption reached 10% 9714 | -6/Cetus | Identified exit to Archives 9720 | -6/Cetus | Entered Archives 9720 | -6/Archives | Accompanied by 5 allies 9769 | -6/Archives | Discovered new exit (range 22) 9777 | -6/Archives | Discovered new exit (range 22) 9821 | -6/Archives | Discovered exit to Factory (range 14) 9921 | -6/Archives | Build established: Scavenger-Tank 10330 | -6/Archives | Entered Factory 10330 | -5/Factory | Accompanied by 4 allies 10330 | -5/Factory | Evolved 2 slots: Utility x2 10693 | -5/Factory | Identified exit to Factory 10693 | -5/Factory | Identified exit to Upper Caves 10874 | -5/Factory | Allied Derelicts emerged from ambush trap array 10996 | -5/Factory | Garrison activated, responded to threat 11039 | -5/Factory | Cargo convoy interrupted 11060 | -5/Factory | Lost 4 allies 11068 | -5/Factory | Destroyed 10 combat bots 11089 | -5/Factory | Found Prototype Launcher 11157 | -5/Factory | Identified Gui. Micro-nuke Launcher 11168 | -5/Factory | Found Gui. Micro-nuke Launcher 11228 | -5/Factory | Lost 5 parts (1p2n2u) 11230 | -5/Factory | First assault squad dispatched 11244 | -5/Factory | Core integrity fell below 50% 11317 | -5/Factory | Core integrity fell below 20% 11334 | -5/Factory | Released all parts (6) 11353 | -5/Factory | Entered Upper Caves 11353 | -5/Upper Caves | Spotted B-75 Beast 11356 | -5/Upper Caves | Lost 9 parts (1p4n2u2w) 11359 | -5/Upper Caves | Destroyed by G-50 Soldier with Heavy Laser Last Messages --------------- 11322_ Acquired Centrium Medium Armor Plating. 11325_ Gui. Micro-nuke Launcher destroyed. 11325_ Critical hit (Burn: +37). 11325_ Critical hit (Burn: +50). 11327_ K-01 Serf destroyed. 11328_ The unstable cave ceiling collapses. 11330_ G-50 Soldier destroyed. 11331_ G-67 Veteran destroyed. 11332_ Dropped XL Autogun Subcomponent. 11333_ The unstable cave ceiling collapses. 11334_ Released Enh. Flexi-carbon Leg. 11334_ Released Huge Storage Unit. 11334_ Released Core Analyzer. 11334_ Released Imp. Hacking Suite. 11334_ Released Centrium Medium Armor Plating. 11335_ The unstable cave ceiling collapses. 11335_ Critical hit (Burn: +37). LOCATION=UPPER CAVES GOAL=ESCAPE 11359_ SCL1&ETKHFYHX&UATOWQMVVUNC:M Map ----- +----------------------------------------------------+ | ?????????????????????????????????????????????????? | | ?????????????????????????????????????????????????? | | ?????????????????????????????????????????????????? | | ?????????????????????????????????????????????????? | | ?????????????????????????????????????????????????? | | ??????????????????????????????####???????????????? | | ?????????????????????????????? ???????????????? | | ??????????????????????????????? #??????????????? | | ??????????????????????????????? #??????????????? | | ??????????????????????????????? #??????????????? | | ????????????????????# ? ??????? #??????????????? | | ???????????????????? ??????? ??????????????? | | ???????????????????# ???????# #??????????????? | | ??????????????????## #??????# #??????????????? | | ??????????????????# #?????# #??????????????? | | ?????????????????## ###### #??????????????? | | ????????????? ### ###????????????? | | ?????????????? #????????????? | | ??????????????? ## #????????????? | | ??????????????? ## #?????????????? | | ??????????????? ### #?????????????? | | ????????????????# #### #?????????????? | | ????????????????# #### #?????????????? | | ?????????????????# ### #?????????????? | | ???????????????????????# #?????????????? | | ???????????????????????##@ #?????????????? | | ????????????????????????# ##?????????????? | | ???????????????????# ##### #??????????????? | | ?????????????????# ##???# #??????????????? | | ???????????????# #????# ##??????????????? | | ????????????? #???? ##???????????????? | | ????????????? ???? ?????????????????? | | ?????????????# g ???? ?????????????????? | | ?????????????###### ###???? ?????????????????? | | ??????????????????# #?????????????????????????? | | ??????????????????# #??????????????????????????? | | ?????????????????? ???????????????????????????? | | ????????????????? #???????????????????????????? | | ????????????????## ????????????????????????????? | | ??????????????????# ?????????????????????????????? | | ?????????????????????????????????????????????????? | | ?????????????????????????????????????????????????? | | ?????????????????????????????????????????????????? | | ?????????????????????????????????????????????????? | | ?????????????????????????????????????????????????? | | ?????????????????????????????????????????????????? | | ?????????????????????????????????????????????????? | | ?????????????????????????????????????????????????? | | ?????????????????????????????????????????????????? | | ?????????????????????????????????????????????????? | +----------------------------------------------------+ Best States ------------- Heat Dissipation 71 Coolant Potential 65 Energy Generation 25 Energy Capacity 350 Matter Stores 300 Matter Capacity 300 Sight Range 22 Robot Scan Range 15 Terrain Scan Density 10 Additional Mass Support 12 Armor Coverage 450 Weapon Shielding 66 Evasion (%) 50 Core Analysis 6 Recoil Reduction 4 Matter Filtering 30 Particle Charging 30 Offensive Hacking 48 Authchip Count 1 Item Schematics ----------------- Hyp. Gauss Rifle | -8/Storage | Hacked Scatter Rocket Array | -5/Factory | Scanalyzed Robot Schematics ------------------ None Fabricated ------------ Nothing Repaired ---------- Nothing Alien Tech Used ----------------- None Achievements -------------- None Challenges ------------ None Game ------ Seed ThermoelectricFluxShotgun Manual? 0 Play Time 01:14:16 Cumulative 369.1 hours Start 2025.10.10 @ 06:32:28 End 2025.10.10 @ 08:34:05 Sessions 1 Manual Loads 0 Difficulty Rogue Special Mode None Game No. 485 Rogue 485 Adventurer 0 Explorer 0 Win Type - Total 11 Types 6/0/1/2/1/0/1/0/0/0 Lore% 87 Gallery% 83 Achievement% 70 Wizard Run 0 Options --------- Layout 0 ASCII 0 Keyboard 0 Movement Mouse Keybinds 0 Fullscreen 1 Font 24/Tamsyn Map View 76x50 Zoom Use 0% Tactical HUD 1 Map Filters NONE Filters NONE Steam 1 RUN: aa9c256b-ca28-4ee7-802c-a6e1d82982fa